Cogmind - Beta 12 @@@ ROGUE MODE // 2023.09.24 @ 23:40:42 Player: most_lamentable Result: Destroyed self with Latent Energy Streamer Performance ------------- Evolutions (0) 0 Regions Visited (4) 800 Robots Destroyed (21) 105 Value Destroyed (647) 647 Prototype IDs (23) 460 Alien Tech Used (0) 0 Bonus (248) 248 TOTAL SCORE: 2260 Bonus ------- Aligned with FarCom 300 Friendly Fire -52 Cogmind --------- Core Integrity 0/250 Matter 300/300 Energy 105/265 System Corruption 13% Temperature Cool (0) Movement Walking (190) Ox1 Location -9/Mines Parts ------- > --- POWER (1) -------- Improved Ion Engine > --- PROPULSION (2) --- Aluminum Leg Aluminum Leg > --- UTILITY (2) ------ Large Storage Unit Salvage Targeting Computer > --- WEAPON (2) ------- Latent Energy Streamer > --- INVENTORY (15) --- Improved Ion Engine Small Storage Unit Medium Storage Unit High-capacity Battery (250) Signal Interpreter Seismic Detector ECM Suite Decoy Drone Bay Light Assault Rifle Rocket Launcher Peak State ------------ > --- POWER ------------ Improved Ion Engine > --- PROPULSION ------- Aluminum Leg Aluminum Leg > --- UTILITY ---------- Large Storage Unit Salvage Targeting Computer > --- WEAPON ----------- Latent Energy Streamer Grenade Launcher > --- INVENTORY -------- Improved Ion Engine Small Storage Unit Medium Storage Unit High-capacity Battery Signal Interpreter Seismic Detector ECM Suite Decoy Drone Bay Light Assault Rifle Rocket Launcher [Rating: 20] Favorites ----------- Power Improved Ion Engine Engine Improved Ion Engine Power Core Light Nuclear Core Propulsion Aluminum Leg Treads Light Treads Leg Aluminum Leg Utility Salvage Targeting Computer Device Skeleton Box Storage Large Storage Unit Processor Salvage Targeting Computer Weapon Light Assault Rifle Energy Gun EM Pulse Gun Energy Cannon Latent Energy Streamer Ballistic Gun Light Assault Rifle Launcher Grenade Launcher Build | -11 -10 -10 -10 -9 ------- Run | Jun Mat Min Exi Min Slots Evolved . | . . . . . Power . | . . . . . Propulsion . | . . . . . Utility . | . . . . . Weapon . | . . . . . Parts Attached 26 | 6 14 2 4 . Power 4 | 1 2 1 . . Engine 3 | 1 1 1 . . Core 1 | . 1 . . . Reactor . | . . . . . Propulsion 10 | 2 7 . 1 . Treads 2 | . 2 . . . Leg 8 | 2 5 . 1 . Wheel . | . . . . . Hover . | . . . . . Flight . | . . . . . Utility 5 | 1 2 . 2 . Device 1 | . . . 1 . Storage 3 | 1 1 . 1 . Processor 1 | . 1 . . . Hackware . | . . . . . Protection . | . . . . . Artifact . | . . . . . Weapon 7 | 2 3 1 1 . Energy Gun 1 | . 1 . . . Energy Cannon 1 | . . . 1 . Ballistic Gun 3 | 2 1 . . . Ballistic Cannon . | . . . . . Launcher 2 | . 1 1 . . Special Weapon . | . . . . . Impact Weapon . | . . . . . Slashing Weapon . | . . . . . Piercing Weapon . | . . . . . Special Melee Weapon . | . . . . . Unidentified Prototypes 1 | . . . 1 . Parts Lost 6 | . 2 2 1 1 Power 1 | . . 1 . . Propulsion 1 | . . . 1 . Utility . | . . . . . Weapon 4 | . 2 1 . 1 Highest Loss Streak 2 | . 1 2 1 1 To Critical Strikes . | . . . . . Average Slot Usage (%) 98 | . 98 98 100 88 Engine 9 | . 4 9 14 14 Core 4 | . 9 4 . . Leg 27 | . 26 28 28 28 Storage 14 | . 14 14 14 14 Processor 13 | . 12 14 14 14 Energy Gun 2 | . 4 3 . . Energy Cannon 2 | . . . 3 14 Ballistic Gun 13 | . 19 14 10 . Launcher 8 | . 3 10 14 3 Naked Turns . | . . . . . Heaviest Build 40 | 11 32 31 40 40 Greatest Support 40 | 20 40 20 20 20 Greatest Overweight (x) 2 | 2 1 1 1 1 Average Overweight (x) . | . . 1 . 1 Largest Inventory Capacity 15 | 8 15 15 15 15 Average Capacity 14 | 7 14 15 14 15 Most Carried 15 | 7 15 15 15 11 Average Carried 12 | 3 12 13 13 10 Final Capacity 15 | 8 15 15 15 15 Final Carried 15 | 5 14 15 9 11 Class Distribution -------------------- 100% | Mutant Dominant Class ---------------- Mutant | -10/Materials Mutant | -10/Mines Mutant | -10/Exiles Mutant | -9/Mines Resources | -11 -10 -10 -10 -9 ----------- Run | Jun Mat Min Exi Min Matter Collected 639 | 204 276 72 . 87 Remotely . | . . . . . Salvage Created 687 | . 441 174 . 72 Parts 41 | . 27 10 . 4 Haulers Intercepted . | . . . . . Recyclers Shooed . | . . . . . Parts Field Recycled . | . . . . . Retrieved Matter . | . . . . . Parts Self-Destructed . | . . . . . Prevented . | . . . . . Kills | -11 -10 -10 -10 -9 ------- Run | Jun Mat Min Exi Min Combat Hostiles Destroyed 19 | . 9 7 . 3 Guns 9 | . 9 . . . AOE 10 | . . 7 . 3 Classes Destroyed 5 | . 2 2 . 1 Worker 1 | . . 1 . . Watcher 1 | . 1 . . . Swarmer 5 | . . 3 . 2 Grunt 13 | . 9 4 . . Demolisher 1 | . . . . 1 Best Kill Streak 8 | . 4 8 . 2 Combat Bots Only 7 | . 4 7 . 2 Max Kills in Single Turn 2 | . 1 2 . 2 Gunslinging . | . . . . . Exploded 2 | . . 2 . 2 Melee . | . . . . . Uniques/NPCs Destroyed . | . . . . . Combat | -11 -10 -10 -10 -9 -------- Run | Jun Mat Min Exi Min Damage Taken 1354 | . 695 309 73 277 Core 258 | . 147 21 . 90 Absorbed by Shields . | . . . . . Regen/Repaired (Parts) 44 | . 44 . . . Core Remaining (%) 100 | 100 . . . . Volleys Fired 45 | . 28 12 . 5 Largest 2 | . 2 2 . 1 Hottest 60 | . 60 60 . 60 Shots Fired 78 | . 55 18 . 5 Gun 68 | . 55 13 . . Cannon 5 | . . . . 5 Launcher 5 | . . 5 . . Special . | . . . . . Kinetic 55 | . 48 7 . . Thermal . | . . . . . Explosive 5 | . . 5 . . Electromagnetic 18 | . 7 6 . 5 Robot Hit Streak 13 | . 13 7 . 1 Robot Miss Streak 2 | . 2 1 . 2 Penetration Max . | . . . . . Secondary Targets 1 | . 1 . . . Max Gunslinging Chain 1 | . 1 . . . Shots Hit Robots 50 | . 38 11 . 1 Core Hits 34 | . 17 9 . 8 Critical Kills 1 | . 1 . . . Critical Parts Destroyed . | . . . . . Critical Strikes 1 | . 1 . . . Destroy 1 | . 1 . . . Melee Attacks . | . . . . . Impact . | . . . . . Slashing . | . . . . . Piercing . | . . . . . Sneak Attacks . | . . . . . Combat Hostiles . | . . . . . Follow-up Attacks . | . . . . . Damage Inflicted 1263 | . 389 484 . 390 Guns 490 | . 389 101 . . Cannons 7 | . . . . 7 Explosions 766 | . . 383 . 383 Melee . | . . . . . Ramming . | . . . . . Kinetic 362 | . 311 51 . . Thermal 31 | . . 31 . . Explosive 352 | . . 352 . . Electromagnetic 518 | . 78 50 . 390 Impact . | . . . . . Slashing . | . . . . . Piercing . | . . . . . Highest Corruption 12 | . 2 2 2 12 Average Corruption 3 | . 2 2 2 10 Corruption Purged . | . . . . . Corruption Blocked . | . . . . . Effects 31 | . 1 9 10 11 Message Errors 5 | . . 4 . 1 Matter Fused 8 | . . . 7 1 Heat Flow Errors 6 | . . 1 1 4 Energy Discharges 4 | . . 2 . 2 Data Loss (minor) 7 | . . 2 2 3 Data Loss (major) 1 | . 1 . . . Overload Shots . | . . . . . Overflow Damage 24 | . . 12 . 12 Projectiles . | . . . . . Explosions 24 | . . 12 . 12 Melee . | . . . . . Knockbacks . | . . . . . Impact . | . . . . . Kinetic . | . . . . . Secondary . | . . . . . Self-Inflicted Damage 273 | . . 113 . 160 Shots 7 | . . 4 . 3 Rammed . | . . . . . Targets Rammed . | . . . . . Kicked . | . . . . . Crushed . | . . . . . Highest Temperature 267 | . 114 227 267 266 Average Temperature 73 | . 24 83 142 103 Received Heat Transfer 526 | . 330 96 . 100 Siege Activations . | . . . . . Robots Corrupted . | . . . . . Combat Hostiles . | . . . . . Parts Fried . | . . . . . Impact Corruptions . | . . . . . Robots Melted . | . . . . . Combat Hostiles . | . . . . . Parts Melted . | . . . . . Heat Transferred 50 | . . 50 . . Parts Sabotaged . | . . . . . Parts Stolen . | . . . . . Parts Stripped . | . . . . . Power Chain Reactions 1 | . . 1 . . Missiles Intercepted . | . . . . . Latent Energy Used 492 | . . . . 492 LE Corruption 9 | . . . . 9 Alert | -11 -10 -10 -10 -9 ------- Run | Jun Mat Min Exi Min Peak Influence 272 | . 136 272 . 103 Initial 30 | . . 30 . . Average 53 | . 21 91 . 88 Maximum Alert Level 1 | . . 1 . . Low Security (%) 93 | 100 100 83 . 100 Level 1 6 | . . 16 . . Level 2 . | . . . . . Level 3 . | . . . . . Level 4 . | . . . . . Level 5 . | . . . . . High Security . | . . . . . Max Security . | . . . . . Squads Dispatched 1 | . 1 . . . Investigation 1 | . 1 . . . Extermination . | . . . . . Reinforcement . | . . . . . Assault . | . . . . . Garrison . | . . . . . Intercept . | . . . . . Searches Triggered . | . . . . . Construction Impeded . | . . . . . Haulers Reinforced . | . . . . . Active Scanning Responses . | . . . . . Cargo Convoy Interrupts . | . . . . . Stealth | -11 -10 -10 -10 -9 --------- Run | Jun Mat Min Exi Min Distress Signals 2 | . 1 . . 1 Communications Jammed . | . . . . . Distress Signals . | . . . . . Times Spotted 39 | . 18 7 3 11 Peak Tracking Total 7 | . 7 4 1 4 Tactical Retreats 2 | . . 1 1 . Traps | -11 -10 -10 -10 -9 ------- Run | Jun Mat Min Exi Min Traps Triggered 1 | . 1 . . . Indirectly . | . . . . . Trap Hack Attempts . | . . . . . Triggered . | . . . . . Disarmed . | . . . . . Reprogrammed . | . . . . . Reused . | . . . . . Traps Extracted . | . . . . . Installed . | . . . . . Triggered . | . . . . . Exploded 1 | . . . 1 . Machines | -11 -10 -10 -10 -9 ---------- Run | Jun Mat Min Exi Min Machines Disabled 3 | . 1 1 . 1 Max in Single Turn 1 | . 1 1 . 1 Machines Repaired . | . . . . . Machines Sabotaged . | . . . . . Overloaded Fab Kills . | . . . . . Hacking | -11 -10 -10 -10 -9 --------- Run | Jun Mat Min Exi Min Machines Accessed 8 | . 7 . 1 . Terminals 4 | . 4 . . . Fabricators . | . . . . . Repair Stations 1 | . 1 . . . Recycling Units 2 | . 2 . . . Scanalyzers . | . . . . . Garrison Access . | . . . . . Total Hacks 15 | . 14 . 1 . Successful 8 | . 7 . 1 . Failed 7 | . 7 . . . Catastrophic 1 | . 1 . . . Database Lockouts . | . . . . . Manual 9 | . 8 . 1 . Terminals 8 | . 8 . . . Fabricators . | . . . . . Repair Stations 3 | . 3 . . . Recycling Units 3 | . 3 . . . Scanalyzers . | . . . . . Garrison Access . | . . . . . Terminal Hacks 3 | . 2 . 1 . Dispatch Records 1 | . 1 . . . Hauler Manifests 1 | . 1 . . . EX-Prototype ID Bank 1 | . . . 1 . Fabricator Hacks . | . . . . . Repair Station Hacks 3 | . 3 . . . Scan Component 2 | . 2 . . . Repair 1 | . 1 . . . Recycling Unit Hacks 1 | . 1 . . . Report Inventory 1 | . 1 . . . Scanalyzer . | . . . . . Garrison Access Hacks . | . . . . . Unauthorized Hacks 1 | . 1 . . . Terminals . | . . . . . Fabricators . | . . . . . Repair Stations . | . . . . . Recycling Units 1 | . 1 . . . Reject 1 | . 1 . . . Scanalyzers . | . . . . . Garrison Access . | . . . . . Data Cores Recovered . | . . . . . Used . | . . . . . Hacking Detections 5 | . 5 . . . Full Trace Events 1 | . 1 . . . Feedback Events . | . . . . . Feedback Blocked . | . . . . . Robot Schematics Acquired . | . . . . . Robots Built . | . . . . . Authchips . | . . . . . Time . | . . . . . Total Robot Build Rating . | . . . . . Part Schematics Acquired . | . . . . . Parts Built . | . . . . . Authchips . | . . . . . Time . | . . . . . Total Part Build Rating . | . . . . . Parts Repaired 1 | . 1 . . . Time 26 | . 26 . . . Parts Recycled . | . . . . . Recycled Matter . | . . . . . Retrieved Matter . | . . . . . Retrieved Components . | . . . . . Parts Scanalyzed . | . . . . . Part Schematics Acquired . | . . . . . Parts Damaged . | . . . . . Bothacking | -11 -10 -10 -10 -9 ------------ Run | Jun Mat Min Exi Min Used RIF Installer . | . . . . . Robots Hacked . | . . . . . Non-combat . | . . . . . Combat . | . . . . . Robot Hacks Applied . | . . . . . Relay Couplers Released . | . . . . . Fabnet Peak Effective % . | . . . . . Robots Rewired . | . . . . . Allies Hacked . | . . . . . Hacks Repelled . | . . . . . Allies | -11 -10 -10 -10 -9 -------- Run | Jun Mat Min Exi Min Total Allies . | . . . . . Largest Group . | . . . . . Highest-Rated Group . | . . . . . Highest-Rated Ally . | . . . . . Total Orders . | . . . . . Ally Attacks . | . . . . . Total Damage . | . . . . . Kills . | . . . . . Allies Corrupted . | . . . . . Allies Melted . | . . . . . Intel | -11 -10 -10 -10 -9 ------- Run | Jun Mat Min Exi Min Robot Analysis Total . | . . . . . Derelict Logs Recovered 2 | . . 2 . . Drone Launches . | . . . . . Drone Recoveries . | . . . . . Exploration | -11 -10 -10 -10 -9 ------------- Run | Jun Mat Min Exi Min Turns Passed 3262 | 77 1166 872 877 270 Spaces Moved 1593 | 52 568 425 454 94 Core 8 | 8 . . . . Treads 5 | . 5 . . . Legs 1580 | 44 563 425 454 94 Wheels . | . . . . . Hover . | . . . . . Flight . | . . . . . Fastest Speed 50 | 50 120 190 120 190 Average Speed 182 | 115 176 190 189 190 Slowest Speed 190 | 150 190 190 190 190 Overloaded Moves . | . . . . . Propulsion Burnouts . | . . . . . Robots Hopped . | . . . . . Cave-ins Triggered . | . . . . . Exploration Rate (%) 51 | 4 77 80 79 16 Regions Visited 4 Branch Regions 3 Pre-discovered Areas 1 | . . 1 . . Known Exits Taken . | . . . . . Unknown Exits Taken 4 | 1 1 1 1 . Scrap Searched 3 | . . 3 . . Spaces Dug . | . . . . . Terrain Destroyed 80 | . . 45 . 35 Melee . | . . . . . Projectile . | . . . . . AOE 80 | . . 45 . 35 Terrain Rammed . | . . . . . Walls Destroyed . | . . . . . Machines Disabled . | . . . . . Actions | -11 -10 -10 -10 -9 --------- Run | Jun Mat Min Exi Min Total 1876 | 68 683 473 470 182 Wait 163 | . 49 32 . 82 Move 1589 | 51 567 424 453 94 Hop . | . . . . . Pick Up 42 | 11 18 3 9 1 Fast Attach . | . . . . . Attach 13 | 6 4 2 1 . Detach . | . . . . . Swap 13 | . 10 . 3 . Drop 11 | . 7 . 4 . Fire 45 | . 28 12 . 5 Melee . | . . . . . Ram . | . . . . . Kick . | . . . . . Crush . | . . . . . Escape Stasis . | . . . . . Rewire . | . . . . . Trap . | . . . . . Miscellaneous . | . . . . . Route ------- -11/Junkyard -10/Materials (discovered 3 exits: [*Mat x2] / [*Min]) -10/Mines (discovered 3 exits: [*Mat x2] / *Exi) -10/Exiles (discovered 2 exits: [*Min x2]) -9/Mines (discovered 1 exit: [*Mat]) History --------- Turn | Location | Event 8 | -11/Junkyard | Discovered new exit (range 15) 78 | -11/Junkyard | Entered Materials 125 | -10/Materials | Discovered new exit (range 14) 317 | -10/Materials | Build established: Mutant 654 | -10/Materials | Discovered new exit (range 10) 701 | -10/Materials | Repaired Aluminum Leg 852 | -10/Materials | Core integrity fell below 50% 895 | -10/Materials | Discovered new exit (range 11) 1244 | -10/Materials | Entered Mines 1322 | -10/Mines | Discovered new exit (range 6) 1426 | -10/Mines | Learned location of Zion (-7) 1493 | -10/Mines | Received a Rocket Launcher from a helpful Derelict 1521 | -10/Mines | Destroyed 7 combat bots 1644 | -10/Mines | Discovered new exit (range 9) 1967 | -10/Mines | Learned Materials terminal intel 2108 | -10/Mines | Deemed a non-threat by the Exiles lab entrance 2108 | -10/Mines | Discovered new exit (range 5) 2116 | -10/Mines | Entered Exiles 2149 | -10/Exiles | Discovered new exit (range 14) 2198 | -10/Exiles | Met 8R-AWN 2225 | -10/Exiles | Met EX-HEX 2321 | -10/Exiles | Met EX-DEC 2351 | -10/Exiles | Visited The Gauntlet 2526 | -10/Exiles | Discovered new exit (range 15) 2658 | -10/Exiles | Met EX-BIN 2684 | -10/Exiles | Aligned with FarCom system 2686 | -10/Exiles | Given EX-Vault access code 2730 | -10/Exiles | Opened EX-Vault 2742 | -10/Exiles | Found Prototype Device 2743 | -10/Exiles | Identified Skeleton Box 2775 | -10/Exiles | Found Latent Energy Streamer 2817 | -10/Exiles | Warned to stay clear of 0b10 Research branches 2820 | -10/Exiles | Exiles lab attacked by MAIN.C 2993 | -10/Exiles | Left Exiles lab with Latent Energy Streamer 2993 | -10/Exiles | Entered Mines 2994 | -9/Mines | Assembled infested the area 3007 | -9/Mines | Found the Drone Emporium 3019 | -9/Mines | Found Prototype Device 3020 | -9/Mines | Met a Derelict bent on vengeance 3051 | -9/Mines | System corruption reached 10% 3056 | -9/Mines | Core integrity fell below 20% 3261 | -9/Mines | Discovered new exit (range 7) 3263 | -9/Mines | Destroyed self with Latent Energy Streamer Last Messages --------------- 03181_ System corrupted: Heat flow error (+283). 03182_ T-07 Excavator is excavating. 03198_ U-05 Engineer lays Concrete. 03200_ U-05 Engineer builds a Wall. 03204_ U-05 Engineer lays Concrete. 03205_ K-01 Serf collects debris. 03205_ U-05 Engineer builds a Wall. 03214_ U-05 Engineer lays Concrete. 03218_ U-05 Engineer builds a Wall. 03223_ U-05 Engineer lays Concrete. 03223_ Acquired 20 matter. 03225_ Acquired 11 matter. 03227_ System corrupted: Heat flow error (+229). 03227_ Acquired 12 matter. 03228_ K-01 Serf collects debris. 03233_ U-05 Engineer builds a Wall. 03240_ Acquired 12 matter. 03248_ Acquired 32 matter. 03249_ System corrupted: Component data lost. 03261_ EXIT=FOUND Map ----- +----------------------------------------------------+ | ?????????????????????????????????????????????????? | | ?????????????????????????????????????????????????? | | ?????????????????????????????????????????????????? | | ?????????????????????????????????????????????????? | | ?????????????????????????????????????????????????? | | ?????????????????????????????????????????????????? | | ?????????????????????????????????????????????????? | | ?????????????????????????????????????????????????? | | #????????????????????????????????????????????????? | | #????????????????????????????????????????????????? | | ##???????????????????????????????????????????????? | | ##########??????????????????????????????????????? | | "##""##????#????????????????????????????????? | | #" """ #???? ????????????????????????????????? | | """ "" "???# #???????????????????????????????? | | " " "" "??? ???????????????????????????????? | | # " #" #???% ##?????????????????????????????? | | """ ###""##??? ??????????????????????????????? | | =% ###### #?* %???????????????????????????????? | | % # # #%# #????????????????????????????? | | ##########%# #????????????????????????????? | | % " = =# #????????????????????????????? | | ="" ########## # ?????????????????????????????? | | """ ## # ##########??????????????????????? | | #?##### # % % #??????????????????????? | | #######???????###########@#??????????????????????? | | ????????????????????????# #??????????????????????? | | ????????????????????????# #??????????????????????? | | ????????????????????????# ??????????????????????? | | ????????????????????????#%#??????????????????????? | | ????????????????????????#a ??????????????????????? | | ????????????????????????*a